[Event "DFMM-LV 2023"]
[Site "Braunfels"]
[Date "2023.06.10"]
[Round "4.44"]
[White "Dietrich, Mareike"]
[Black "Mueller, Riyanna"]
[Result "0-1"]
[Annotator "NA RC COMBH"]
[ECO "B01"]
[WhiteElo "1771"]
[BlackElo "1687"]
[PlyCount "70"]
[EventDate "2023.06.09"]
[EventType "team-tourn"]
[EventCountry "GER"]
[SourceTitle "playchess.com"]
[Source "ChessBase"]
[SourceQuality "1"]
[TimeControl "40/5400+30:1800+30"]

1. e4 {[%emt 0:00:01]} d5 {[%emt 0:00:07]} 2. exd5 {[%emt 0:00:04]} Qxd5 {[%emt 0:00:20]} 3. Nc3 {[%emt 0:00:05]} Qd6 {[%emt 0:00:53]} 4. d4 {[%emt 0:00:48]} Nf6 {[%emt 0:00:37]} 5. Nf3 {[%emt 0:01:00]} a6 {[%emt 0:00:51]} 6. g3 {[%emt 0:01:44]} Bg4 {[%emt 0:01:17]} 7. h3 {[%emt 0:00:53]} Bxf3 {[%emt 0:01:18]} 8. Qxf3 {[%emt 0:00:15]} c6 {[%emt 0:01:17]} 9. Bf4 {[%emt 0:10:22]} Qd8 {[%emt 0:03:37]} 10. Rd1 {[%emt 0:04:00]} e6 {[%emt 0:01:40]} 11. Bg5 {[%emt 0:04:31]} Be7 {[%emt 0:06:38]} 12. Bg2 {[%emt 0:00:28]} O-O {[%emt 0:01:25]} 13. O-O {[%emt 0:00:47]} Nbd7 {[%emt 0:01:27]} 14. Rfe1 {[%emt 0:00:28]} Nd5 {[%emt 0:04:02]} 15. Bxe7 {[%emt 0:00:22]} Nxe7 {[%emt 0:00:51]} 16. Ne4 {[%emt 0:00:33]} Nb6 {[%emt 0:04:03]} 17. Qd3 {[%emt 0:03:56]} Rc8 {[%emt 0:06:30]} 18. h4 {[%emt 0:05:35]} h6 {[%emt 0:06:16]} 19. Bh3 {[%emt 0:01:04]} Ned5 {[%emt 0:01:53]} 20. Nc5 {[%emt 0:01:21]} Qc7 {[%emt 0:03:13]} 21. Re2 {[%emt 0:06:06]} Nd7 {[%emt 0:04:12]} 22. Nxd7 {[%emt 0:09:37]} Qxd7 {[%emt 0:00:08]} 23. c4 {[%emt 0:00:06]} Nf6 {[%emt 0:01:00]} 24. Qf3 {[%emt 0:06:30]} Rfd8 {[%emt 0:06:01]} 25. g4 {[%emt 0:01:31]} Qe7 {[%emt 0:08:26]} 26. d5 {[%emt 0:06:28]} cxd5 {[%emt 0:01:37]} 27. cxd5 {[%emt 0:00:12]} Rc5 {[%emt 0:01:06]} 28. Qa3 {[%emt 0:08:37]} Rdxd5 {[%emt 0:01:03]} 29. Rde1 {[%emt 0:02:18]} Qc7 {[%emt 0:05:08]} 30. Bg2 {[%emt 0:05:53]} Rd4 {[%emt 0:02:57]} 31. f3 {[%emt 0:03:38]} Nd5 {[%emt 0:02:39]} 32. Re5 {[%emt 0:01:17]} Ra5 {[%emt 0:04:07]} 33. Qb3 {[%emt 0:00:27]} Rb4 {[%emt 0:01:31]} 34. Qd1 {[%emt 0:02:22]} Rxb2 {[%emt 0:19:20]} 35. Bf1 {[%emt 0:01:24]} Raxa2 {[%emt 0:00:00]} 0-1

[Event "DFMM-LV 2023"]
[Site "Braunfels"]
[Date "2023.06.10"]
[Round "4.45"]
[White "Moench, Dorothee"]
[Black "Kohl, Natalie"]
[Result "1/2-1/2"]
[Annotator "NA RC COMBH"]
[ECO "A14"]
[WhiteElo "1722"]
[BlackElo "1504"]
[PlyCount "70"]
[EventDate "2023.06.09"]
[EventType "team-tourn"]
[EventCountry "GER"]
[SourceTitle "playchess.com"]
[Source "ChessBase"]
[SourceQuality "1"]
[TimeControl "40/5400+30:1800+30"]

1. Nf3 {[%emt 0:07:37]} Nf6 {[%emt 0:00:58]} 2. c4 {[%emt 0:00:23]} e6 {[%emt 0:00:15]} 3. Nc3 {[%emt 0:01:55]} b6 {[%emt 0:02:27]} 4. g3 {[%emt 0:02:02]} Bb7 {[%emt 0:00:16]} 5. Bg2 {[%emt 0:00:07]} Be7 {[%emt 0:03:08]} 6. O-O {[%emt 0:00:54]} O-O {[%emt 0:00:07]} 7. d3 {[%emt 0:02:30]} d5 {[%emt 0:02:41]} 8. e3 {[%emt 0:09:09]} c5 {[%emt 0:09:34]} 9. b3 {[%emt 0:02:33]} Nbd7 {[%emt 0:09:38]} 10. Bb2 {[%emt 0:04:13]} a6 {[%emt 0:02:31]} 11. h3 {[%emt 0:07:08]} Qc7 {[%emt 0:04:47]} 12. cxd5 {[%emt 0:03:55]} exd5 {[%emt 0:03:51]} 13. Ne2 {[%emt 0:02:12]} Rad8 {[%emt 0:04:27]} 14. d4 {[%emt 0:02:26]} Ne4 {[%emt 0:11:42]} 15. Rc1 {[%emt 0:03:37]} Qd6 {[%emt 0:07:34]} 16. Nd2 {[%emt 0:03:53]} Ndf6 {[%emt 0:07:39]} 17. Nf4 {[%emt 0:03:39]} Nxd2 {[%emt 0:10:48]} 18. Qxd2 {[%emt 0:00:09]} cxd4 {[%emt 0:00:33]} 19. Bxd4 {[%emt 0:02:26]} Ne4 {[%emt 0:01:26]} 20. Qb2 {[%emt 0:03:37]} Bf6 {[%emt 0:02:34]} 21. Bxf6 {[%emt 0:04:00]} Qxf6 {[%emt 0:01:02]} 22. Qxf6 {[%emt 0:00:45]} Nxf6 {[%emt 0:00:09]} 23. Rc7 {[%emt 0:02:26]} Ba8 {[%emt 0:00:36]} 24. Rd1 {[%emt 0:01:01]} g5 {[%emt 0:00:52]} 25. Ne2 {[%emt 0:01:51]} h5 {[%emt 0:04:16]} 26. Nd4 {[%emt 0:03:22]} g4 {[%emt 0:02:40]} 27. hxg4 {[%emt 0:01:42]} hxg4 {[%emt 0:00:28]} 28. Kf1 {[%emt 0:01:32]} Ne4 {[%emt 0:00:53]} 29. Ke2 {[%emt 0:01:16]} Rc8 {[%emt 0:00:40]} 30. Rdc1 {[%emt 0:00:14]} Rce8 {[%emt 0:02:15]} 31. b4 {[%emt 0:04:16]} Nd6 {[%emt 0:00:12]} 32. Nc6 {[%emt 0:02:19]} d4 {[%emt 0:01:22]} 33. Kd3 {[%emt 0:08:46]} dxe3 {[%emt 0:01:00]} 34. fxe3 {[%emt 0:00:37]} Nf5 {[%emt 0:00:44]} 35. Be4 {[%emt 0:04:36]} Bxc6 {[%emt 0:01:00]} 1/2-1/2

[Event "DFMM-LV 2023"]
[Site "Braunfels"]
[Date "2023.06.10"]
[Round "4.46"]
[White "Loos, Tilda"]
[Black "Richter, Johanna"]
[Result "0-1"]
[Annotator "NA RC COMBH"]
[ECO "B33"]
[WhiteElo "1401"]
[BlackElo "1470"]
[PlyCount "140"]
[EventDate "2023.06.09"]
[EventType "team-tourn"]
[EventCountry "GER"]
[SourceTitle "playchess.com"]
[Source "ChessBase"]
[SourceQuality "1"]
[TimeControl "40/5400+30:1800+30"]

1. e4 {[%emt 0:02:02]} c5 {[%emt 0:00:04]} 2. Nf3 {[%emt 0:00:05]} Nc6 {[%emt 0:00:05]} 3. d4 {[%emt 0:00:06]} cxd4 {[%emt 0:00:03]} 4. Nxd4 {[%emt 0:00:06]} Nf6 {[%emt 0:00:03]} 5. Nc3 {[%emt 0:00:07]} e5 {[%emt 0:00:03]} 6. Nf3 {[%emt 0:00:10]} Bb4 {[%emt 0:02:26]} 7. Bd3 {[%emt 0:02:26]} O-O {[%emt 0:01:11]} 8. Bd2 {[%emt 0:00:21]} d6 {[%emt 0:01:04]} 9. O-O {[%emt 0:00:12]} h6 {[%emt 0:02:27]} 10. Nd5 {[%emt 0:01:25]} Bxd2 {[%emt 0:00:26]} 11. Qxd2 {[%emt 0:00:14]} Nxd5 {[%emt 0:00:39]} 12. exd5 {[%emt 0:00:16]} Ne7 {[%emt 0:00:37]} 13. c4 {[%emt 0:00:24]} f5 {[%emt 0:00:20]} 14. Bc2 {[%emt 0:00:37]} b6 {[%emt 0:02:08]} 15. Rfe1 {[%emt 0:00:41]} Ba6 {[%emt 0:01:33]} 16. b3 {[%emt 0:00:46]} Ng6 {[%emt 0:04:28]} 17. Qc3 {[%emt 0:06:22]} Nh4 {[%emt 0:05:04]} 18. Nxh4 {[%emt 0:03:49]} Qxh4 {[%emt 0:00:25]} 19. Qf3 {[%emt 0:00:23]} Bc8 {[%emt 0:03:53]} 20. Rac1 {[%emt 0:02:29]} Bd7 {[%emt 0:01:57]} 21. Bb1 {[%emt 0:01:11]} Rac8 {[%emt 0:00:47]} 22. Qg3 {[%emt 0:04:08]} Qxg3 {[%emt 0:01:22]} 23. hxg3 {[%emt 0:00:06]} Rfe8 {[%emt 0:01:05]} 24. f3 {[%emt 0:00:18]} Rc7 {[%emt 0:03:14]} 25. Kf2 {[%emt 0:00:21]} Kf7 {[%emt 0:00:56]} 26. Rc3 {[%emt 0:01:51]} g6 {[%emt 0:01:13]} 27. Rh1 {[%emt 0:01:18]} Kg7 {[%emt 0:00:37]} 28. Re3 {[%emt 0:01:36]} Rec8 {[%emt 0:01:47]} 29. Bd3 {[%emt 0:03:21]} Rf8 {[%emt 0:04:26]} 30. Re2 {[%emt 0:01:06]} a6 {[%emt 0:05:41]} 31. Rb2 {[%emt 0:03:48]} Bc8 {[%emt 0:03:33]} 32. Rc1 {[%emt 0:01:36]} Bb7 {[%emt 0:00:43]} 33. a4 {[%emt 0:00:32]} Bxd5 {[%emt 0:03:23]} 34. Rd1 {[%emt 0:01:28]} Bb7 {[%emt 0:01:05]} 35. Be2 {[%emt 0:00:16]} Rd8 {[%emt 0:00:39]} 36. Rbd2 {[%emt 0:00:22]} Rcd7 {[%emt 0:00:35]} 37. b4 {[%emt 0:03:46]} Bc8 {[%emt 0:02:40]} 38. Ke3 {[%emt 0:00:58]} Kf6 {[%emt 0:00:36]} 39. Rh1 {[%emt 0:01:28]} h5 {[%emt 0:00:18]} 40. Rhd1 {[%emt 0:00:13]} Ke6 {[%emt 0:00:24]} 41. g4 {[%emt 0:31:50]} f4+ {[%emt 0:30:34]} 42. Kf2 {[%emt 0:00:12]} hxg4 {[%emt 0:00:49]} 43. fxg4 {[%emt 0:00:08]} e4 {[%emt 0:00:44]} 44. Rd4 {[%emt 0:02:20]} e3+ {[%emt 0:00:38]} 45. Kg1 {[%emt 0:00:40]} g5 {[%emt 0:01:02]} 46. Kh2 {[%emt 0:00:31]} Rh8+ {[%emt 0:00:39]} 47. Kg1 {[%emt 0:00:07]} Rdh7 {[%emt 0:01:37]} 48. Rxd6+ {[%emt 0:00:38]} Ke7 {[%emt 0:00:07]} 49. g3 {[%emt 0:00:45]} Rh1+ {[%emt 0:00:04]} 50. Kg2 {[%emt 0:00:25]} Bb7+ {[%emt 0:00:13]} 51. R6d5 {[%emt 0:01:29]} Rxd1 {[%emt 0:00:29]} 52. Bxd1 {[%emt 0:00:09]} Bxd5+ {[%emt 0:00:02]} 53. cxd5 {[%emt 0:00:12]} Kd6 {[%emt 0:00:22]} 54. gxf4 {[%emt 0:00:09]} gxf4 {[%emt 0:00:10]} 55. Bf3 {[%emt 0:00:25]} Rc8 {[%emt 0:00:35]} 56. Kf1 {[%emt 0:00:25]} Rc1+ {[%emt 0:00:50]} 57. Ke2 {[%emt 0:00:16]} Rc2+ {[%emt 0:00:05]} 58. Kd1 {[%emt 0:00:29]} Rd2+ {[%emt 0:01:15]} 59. Ke1 {[%emt 0:00:34]} Rxd5 {[%emt 0:01:00]} 60. Bxd5 {[%emt 0:00:14]} Kxd5 {[%emt 0:00:04]} 61. Ke2 {[%emt 0:00:08]} Ke4 {[%emt 0:00:36]} 62. g5 {[%emt 0:00:51]} Kf5 {[%emt 0:00:04]} 63. g6 {[%emt 0:00:07]} Kxg6 {[%emt 0:00:06]} 64. Kf3 {[%emt 0:00:03]} Kf5 {[%emt 0:00:10]} 65. a5 {[%emt 0:00:22]} b5 {[%emt 0:00:14]} 66. Ke2 {[%emt 0:00:24]} Ke4 {[%emt 0:00:05]} 67. Ke1 {[%emt 0:00:07]} f3 {[%emt 0:00:19]} 68. Kd1 {[%emt 0:00:54]} e2+ {[%emt 0:00:11]} 69. Kd2 {[%emt 0:00:18]} Kd4 {[%emt 0:00:04]} 70. Ke1 {[%emt 0:00:15]} Kd3 {[%emt 0:00:02]} 0-1

[Event "DFMM-LV 2023"]
[Site "Braunfels"]
[Date "2023.06.11"]
[Round "5.1"]
[White "Li, Zhuoling"]
[Black "Agrest, Inna"]
[Result "1-0"]
[Annotator "TA"]
[ECO "C78"]
[WhiteElo "2216"]
[BlackElo "2287"]
[PlyCount "153"]
[EventDate "2023.06.09"]
[EventType "team-tourn"]
[EventCountry "GER"]
[SourceTitle "playchess.com"]
[Source "ChessBase"]
[SourceQuality "1"]
[TimeControl "40/5400+30:1800+30"]

{[%evp 14,153,11,3,17,18,25,-26,0,-5,10,-8,6,0,131,129,129,113,116,117,108,95,114,83,77,79,85,91,75,63,64,68,96,80,85,75,88,87,96,82,87,87,89,89,131,89,82,81,81,87,87,78,78,76,80,73,73,0,77,77,109,100,125,125,125,112,112,111,113,81,100,98,100,50,79,56,100,100,100,100,111,109,109,109,125,122,124,119,119,119,125,125,125,111,659,651,651,631,622,360,624,601,483,8,8,10,14,8,67,8,584,480,697,697,697,697,697,697,1599,696,919,695,613,432,1740,1757,1720,1613,29979,29980,29981,29982,29982,29982,29982,29971,29983,29984,29985,29986,29986,29987]} 1. e4 {[%emt 0:00:04]} e5 {[%emt 0:00:08]} 2. Nf3 {[%emt 0:00:04]} Nc6 {[%emt 0:00:10]} 3. Bb5 {[%emt 0:00:06]} a6 {[%emt 0:00:11]} 4. Ba4 {[%emt 0:00:04]} Nf6 {[%emt 0:00:11]} 5. O-O {[%emt 0:00:05]} Bc5 {[%emt 0:00:22]} 6. d3 {[%emt 0:13:19]} b5 {[%emt 0:00:59]} 7. Bb3 {[%emt 0:00:04]} d6 {[%emt 0:00:10]} 8. a4 $1 {[%emt 0:01:55][%mdl 4] White wants to play axb5. now scores much better than the old 8.c3.} Bg4 {[%emt 0:02:16] C78: Ruy Lopez: Archangelsk and Möller Defences.} 9. c3 {[%emt 0:01:37]} O-O {[%emt 0:01:52]} 10. Be3 {[%emt 0:07:20]} (10. axb5 $142 axb5 11. Rxa8 Qxa8 12. Bg5) 10... Rb8 {[%emt 0:04:47] Black has an edge.} 11. axb5 {[%emt 0:03:32]} axb5 {[%emt 0:00:04]} 12. Nbd2 {[%emt 0:00:56] [#]} h6 $146 {[%emt 0:08:51]} ({Predecessor:} 12... Bxe3 13. fxe3 b4 14. Qe1 bxc3 15. bxc3 Be6 {½-½ Mogranzini,R (2437)-Godena,M (2526) ITA-ch rapid 2011 (7)}) 13. h3 {[%emt 0:05:20]} Be6 {[%emt 0:13:38]} (13... Bxe3 $11 14. fxe3 Bd7) 14. Bxe6 $16 {[%emt 0:27:03]} fxe6 {[%emt 0:00:42]} 15. Bxc5 {[%emt 0:00:05]} dxc5 {[%emt 0:00:07]} 16. Ra6 {[%emt 0:00:07]} Qe8 {[%emt 0:09:44]} 17. Nb3 {[%emt 0:08:40]} c4 {[%emt 0:03:53]} 18. dxc4 {[%emt 0:00:18]} bxc4 {[%emt 0:01:15]} 19. Nbd2 {[%emt 0:00:07]} Rxb2 {[%emt 0:04:40]} 20. Nxc4 {[%emt 0:03:03]} Rb5 {[%emt 0:03:00]} 21. Qd3 {[%emt 0:00:52]} Rc5 {[%emt 0:03:30]} 22. Ncd2 {[%emt 0:00:23] And now Nb3 would win. White has more active pieces.} Nh5 {[%emt 0:13:29] White must now prevent ...Nf4.} 23. Qe3 {[%emt 0:03:28] Prevents Nf4} Rb5 {[%emt 0:01:12]} 24. g3 {[%emt 0:00:16]} Nf6 {[%emt 0:04:44]} 25. Qd3 {[%emt 0:04:27]} Nb8 {[%emt 0:06:07] [#]} 26. Rxe6 {[%emt 0:01:03][%mdl 64] Deflection} Qxe6 {[%emt 0:05:31]} 27. Qxb5 {[%emt 0:00:02]} Nbd7 {[%emt 0:00:06]} 28. Kg2 {[%emt 0:01:43]} c6 {[%emt 0:02:44]} 29. Qc4 {[%emt 0:03:06]} Qxc4 {[%emt 0:03:47]} 30. Nxc4 {[%emt 0:00:03]} Nxe4 {[%emt 0:00:05]} 31. Ncxe5 {[%emt 0:00:19]} Nxe5 {[%emt 0:00:37]} 32. Nxe5 {[%emt 0:00:05]} Nxc3 {[%emt 0:02:46]} 33. Nxc6 {[%emt 0:00:06][%mdl 4096] Endgame KRN-KRN} Ne4 {[%emt 0:00:32]} 34. f3 {[%emt 0:04:48]} Nd2 {[%emt 0:02:20]} 35. Rd1 {[%emt 0:01:23]} (35. Rf2 $16 Nc4 36. Re2) 35... Nc4 {[%emt 0:00:48]} (35... Nxf3 $11 36. h4 Rf6) 36. Rd4 {[%emt 0:01:20]} Nb6 {[%emt 0:02:34]} 37. h4 {[%emt 0:01:04][%cal Bh3h4,Bh4h5][%mdl 32]} Ra8 {[%emt 0:00:26]} 38. h5 {[%emt 0:00:58]} Ra4 {[%emt 0:00:40]} 39. Rd8+ {[%emt 0:03:47]} Kf7 {[%emt 0:00:04]} 40. Ne5+ {[%emt 0:01:10]} Ke6 {[%emt 0:00:53]} 41. f4 {[%emt 0:34:51]} Nd5 {[%emt 0:04:52]} 42. Re8+ {[%emt 0:00:00]} Kf5 {[%emt 0:05:12]} 43. Nf3 {[%emt 0:00:00]} (43. Nd3 $16 {Re5+ is the strong threat.} Kf6 44. Re5) 43... Kf6 {[%emt 0:05:26]} 44. Re5 {[%emt 0:00:00]} Nc3 {[%emt 0:04:17]} 45. Nh2 {[%emt 0:00:00]} Ra2+ {[%emt 0:01:54]} 46. Kh3 {[%emt 0:00:00]} Ne2 {[%emt 0:03:31]} 47. Ng4+ {[%emt 0:00:00]} Kf7 {[%emt 0:00:04]} 48. Ne3 {[%emt 0:00:00]} Nc1 {[%emt 0:05:04]} 49. Kg4 {[%emt 0:00:00]} Nd3 {[%emt 0:01:00]} 50. Rb5 {[%emt 0:00:00]} Ra3 {[%emt 0:01:21]} 51. Kf3 {[%emt 0:00:00]} Nc1 {[%emt 0:00:44]} 52. g4 {[%emt 0:00:00]} Nb3 {[%emt 0:01:04] aiming for ...Nd4+.} 53. Rb7+ {[%emt 0:00:00]} Kf6 $2 {[%emt 0:00:44][%mdl 8192]} (53... Kf8 $16 54. Rd7 Nc5) 54. Nd5+ $18 {[%emt 0:00:00]} Ke6 {[%emt 0:00:05]} 55. Nc7+ {[%emt 0:00:00]} Kf6 {[%emt 0:00:51]} 56. Ne8+ {[%emt 0:00:00][%mdl 64] Discovered Attack} Ke6 {[%emt 0:00:02]} 57. Nxg7+ {[%emt 0:00:00]} Kd5 {[%emt 0:01:05]} 58. Re7 $2 {[%emt 0:00:55]} (58. Rd7+ $18 Kc4 59. Re7) 58... Nd4+ $11 {[%emt 0:00:53][%mdl 64] Discovered Attack (Double check)} 59. Kg2 {[%emt 0:00:48]} Ra2+ {[%emt 0:00:10]} 60. Kf1 {[%emt 0:00:25]} Ra1+ {[%emt 0:00:47]} (60... Nf3 $11) 61. Re1 {[%emt 0:00:19]} (61. Kf2 $14 Ra2+ 62. Ke1) 61... Ra3 $2 {[%emt 0:01:22][%mdl 8192] White stays focused until the end.} (61... Rxe1+ $1 $11 62. Kxe1 Ke4) 62. g5 {[%emt 0:05:50][%cal Bg4g5,Bg5h6,Bh6h7][%mdl 32]} Rf3+ {[%emt 0:00:26]} (62... hxg5 $142 63. Re5+ Kc6 64. fxg5 (64. Rxg5 Rf3+ 65. Kg2 Rxf4 $18) 64... Nf3) 63. Kg2 $18 {[%emt 0:00:04]} Rxf4 {[%emt 0:00:08]} 64. gxh6 {[%emt 0:00:29]} Rf7 {[%emt 0:00:50]} 65. Kg3 {[%emt 0:01:24] Re8 would be deadly.} Nc6 {[%emt 0:00:35]} 66. Kh4 {[%emt 0:01:32]} (66. Re8 $142 Nd4 67. Kg4) 66... Ne5 {[%emt 0:00:22]} 67. Rd1+ {[%emt 0:00:20]} Ke4 {[%emt 0:00:12]} 68. Kg5 {[%emt 0:00:31] Strongly threatening Re1+.} Rf2 {[%emt 0:00:51]} (68... Nf3+ $142 69. Kg6 Ne5+ 70. Kh7 Rc7) 69. h7 {[%emt 0:01:22] Re1+ would kill now.} Nf7+ {[%emt 0:00:38]} 70. Kh4 {[%emt 0:01:04] Hoping for Rd7.} Rg2 {[%emt 0:00:30] [#]} 71. Rf1 $1 {[%emt 0:00:28] White mates.} Nh8 {[%emt 0:00:26]} (71... Rxg7 72. Rxf7) 72. Ne6 {[%emt 0:00:29]} Rh2+ {[%emt 0:00:33]} 73. Kg5 {[%emt 0:00:22]} Rg2+ {[%emt 0:00:25]} 74. Kf6 {[%emt 0:00:11]} Rg3 {[%emt 0:00:28]} 75. Ng5+ {[%emt 0:00:19]} Kd5 {[%emt 0:00:19]} 76. Rd1+ {[%emt 0:00:26]} Kc6 {[%emt 0:00:22]} 77. Rd8 {[%emt 0:02:39] Weighted Error Value: White=0.23 (precise) /Black=0.29 (precise)} 1-0

[Event "DFMM-LV 2023"]
[Site "Braunfels"]
[Date "2023.06.11"]
[Round "5.2"]
[White "Voicu-Jagodzinsky, Carmen"]
[Black "Meier, Annemarie"]
[Result "1/2-1/2"]
[Annotator "TA"]
[ECO "A30"]
[WhiteElo "2297"]
[BlackElo "2258"]
[PlyCount "104"]
[EventDate "2023.06.09"]
[EventType "team-tourn"]
[EventCountry "GER"]
[SourceTitle "playchess.com"]
[Source "ChessBase"]
[SourceQuality "1"]
[TimeControl "40/5400+30:1800+30"]

{[%evp 23,104,20,22,19,25,25,31,25,39,35,32,13,14,16,18,0,12,-5,0,0,0,0,0,0,0,0,14,0,0,0,0,0,0,-31,-38,-32,17,-47,88,-14,0,-50,17,14,22,20,20,20,32,31,26,22,29,31,31,31,29,26,21,14,6,4,6,0,0,0,0,0,25,6,14,4,3,0,0,0,0,0,0,0,0,0,0]} 1. Nf3 {[%emt 0:00:05] Ribli,Zoltan} Nf6 {[%emt 0:00:32]} 2. c4 {[%emt 0:00:07]} b6 {[%emt 0:00:35]} 3. e3 {[%emt 0:06:50]} Bb7 {[%emt 0:00:49]} 4. b3 {[%emt 0:00:10]} e6 {[%emt 0:02:10]} 5. Bb2 {[%emt 0:00:50]} c5 {[%emt 0:03:14]} 6. Be2 {[%emt 0:01:09]} Be7 {[%emt 0:03:23]} 7. O-O {[%emt 0:00:12]} O-O {[%emt 0:00:30]} 8. Nc3 {[%emt 0:01:52]} d6 {[%emt 0:03:15]} 9. d4 {[%emt 0:01:37]} cxd4 {[%emt 0:00:34]} 10. Nxd4 {[%emt 0:04:44]} a6 {[%emt 0:01:33]} 11. Bf3 {[%emt 0:03:46]} Qc7 {[%emt 0:01:04]} 12. Rc1 {[%emt 0:01:25]} Nbd7 {[%emt 0:00:56]} 13. Qe2 {[%emt 0:04:34] has lost popularity (13.h3). A30: Symmetrical English: Double Fianchetto and Hedgehog.} Rac8 {[%emt 0:01:22]} 14. Rfd1 {[%emt 0:02:52]} Qb8 {[%emt 0:04:39]} 15. h3 {[%emt 0:11:54] White is slightly better.} Rfe8 {[%emt 0:02:24] [#]} 16. Bxb7 $146 {[%emt 0:02:22]} ({Predecessor:} 16. Rc2 Bf8 17. Rcd2 Nc5 18. Bxb7 Qxb7 19. Qf3 Qxf3 20. Nxf3 Nfe4 21. Nxe4 Nxe4 22. Rd4 {0-1 L'Ami,E (2470)-Gagunashvili,M (2582) Groningen Harmonie 2003 (3)}) 16... Qxb7 {[%emt 0:00:12]} 17. Nc2 {[%emt 0:04:22]} Bf8 {[%emt 0:03:51]} 18. Rd2 {[%emt 0:03:00]} Rc7 {[%emt 0:07:49]} 19. e4 {[%emt 0:04:11]} Nc5 {[%emt 0:04:52][%cal Rc5e4]} 20. e5 {[%emt 0:06:51]} dxe5 {[%emt 0:01:27]} 21. Qxe5 {[%emt 0:00:29]} Rd7 {[%emt 0:01:12]} 22. Rxd7 {[%emt 0:02:22]} Ncxd7 {[%emt 0:03:18][%cal Bc5d7,Bd7f8,Bf8g6,Bg6h4,Bh4f5][%mdl 32]} 23. Qe2 {[%emt 0:00:51]} Rc8 {[%emt 0:06:16]} 24. Ne3 {[%emt 0:01:40][%cal Bc2e3,Be3g4,Bg4e5][%mdl 32]} Be7 {[%emt 0:08:08]} 25. Rd1 {[%emt 0:02:49][%cal Oe3f5]} Nf8 {[%emt 0:00:12]} 26. Ng4 {[%emt 0:03:09]} Ng6 {[%emt 0:03:33]} 27. Ne5 {[%emt 0:04:50]} Nh4 {[%emt 0:04:27][%csl Gh4][%cal Rb7g2]} 28. f4 {[%emt 0:04:24] [#]} b5 $1 {[%emt 0:00:34]} 29. Kh2 {[%emt 0:02:28]} h5 {[%emt 0:03:52]} (29... bxc4 $15 30. Nxc4 h6) 30. Rd3 {[%emt 0:02:53]} ({Much weaker is} 30. cxb5 axb5 31. Nxb5 Nxg2 32. Qxg2 Qxg2+ 33. Kxg2 Rc2+ 34. Kf3 Rxb2) ({White should try} 30. g3 $1 $11 Nf5 31. g4 hxg4 32. hxg4) 30... Rc7 {[%emt 0:04:56] [#]} (30... bxc4 $15 {stays ahead.} 31. bxc4 Rd8) 31. g3 {[%emt 0:03:18]} (31. cxb5 $1 $16 axb5 32. Nxb5) 31... Nf5 {[%emt 0:00:46]} 32. Qg2 {[%emt 0:00:29] Active counter play!} (32. cxb5 $1 $11 axb5 33. Nxb5 Qxb5 34. Rd8+ {[%mdl 64] Discovered Attack} Bxd8 35. Qxb5 Rc2+ 36. Kg1 Rxb2 37. Qb8) 32... Qxg2+ {[%emt 0:06:44]} (32... Qc8 $15) 33. Kxg2 $11 {[%emt 0:00:02]} bxc4 {[%emt 0:00:13]} 34. Nxc4 {[%emt 0:00:34]} Kf8 {[%emt 0:01:39]} 35. Kf3 {[%emt 0:00:50]} Rd7 {[%emt 0:03:48]} 36. Rxd7 {[%emt 0:00:29]} Nxd7 {[%emt 0:00:02]} 37. Ne4 {[%emt 0:01:09]} Nc5 {[%emt 0:01:37]} 38. Nxc5 {[%emt 0:04:39]} Bxc5 {[%emt 0:00:07][%mdl 4096] Endgame KBN-KBN} 39. g4 {[%emt 0:00:22]} hxg4+ {[%emt 0:00:28]} 40. hxg4 {[%emt 0:00:07]} Ne7 {[%emt 0:03:53]} 41. Ne5 {[%emt 0:33:33] aiming for Nd7+.} Bd6 {[%emt 0:30:22]} 42. Nd3 {[%emt 0:00:51]} f6 {[%emt 0:00:47]} 43. Bd4 {[%emt 0:02:23]} Nc6 {[%emt 0:03:16]} 44. Bc3 {[%emt 0:00:21]} Ke7 {[%emt 0:00:55]} 45. Ke4 {[%emt 0:00:20]} Kd7 {[%emt 0:01:24]} 46. a4 {[%emt 0:01:02]} (46. g5 $5 {[%cal Rg5f6]}) 46... Kc7 {[%emt 0:00:00] The position is equal.} 47. b4 {[%emt 0:00:00]} Ne7 {[%emt 0:00:00]} 48. f5 {[%emt 0:00:00]} e5 {[%emt 0:00:00]} 49. Bd2 {[%emt 0:00:00]} Kc6 {[%emt 0:00:00]} 50. g5 {[%emt 0:00:00]} Nc8 {[%emt 0:00:00]} 51. gxf6 {[%emt 0:00:00]} gxf6 {[%emt 0:00:00]} 52. Nb2 {[%emt 0:00:00]} Be7 {[%emt 0:00:00] Weighted Error Value: White=0.12 (very precise) /Black=0.13 (very precise)} 1/2-1/2